Workbook

Sheet 2021
A5: ТОВ «Гідромаш Інжинірінг» | B5: Тел.: +380 44 502 39 31 | C5: Дата:
A6: вул. Шахтарська, 5 | B6: Моб: +380 50 418 17 36
A7: м. Київ 04074 | B7: gme.in.ua
A9: Артикул | B9: Опис | C9: Ціна, євро з ПДВ | D9: Ціна, євро без ПДВ | E9: К-сть в упаковці | F9: Од. вимір.
A10: 200002 | B10: 0200002 BIS IKS-2000® Тримач (перфострічка) | C10: =D10*1.2 -> 2.016 | D10: 1.68 | E10: 100 | F10: шт
A11: 635316 | B11: BIS Напівкруглий підтримуючий профіль 3м 16мм | C11: =D11*1.2 -> 1.908 | D11: 1.59 | E11: 0 | F11: м
A12: 635320 | B12: BIS Напівкруглий підтримуючий профіль 3м 20мм | C12: =D12*1.2 -> 2.1 | D12: 1.75 | E12: 0 | F12: м
A13: 635325 | B13: BIS Напівкруглий підтримуючий профіль 3м 25мм | C13: 2.496 | D13: 2.08 | E13: 0 | F13: м
A14: 635332 | B14: BIS Напівкруглий підтримуючий профіль 3м 32мм | C14: 2.988 | D14: 2.49 | E14: 0 | F14: м
A15: 635340 | B15: BIS Напівкруглий підтримуючий профіль 3м 40мм | C15: 3.792 | D15: 3.16 | E15: 0 | F15: м
A16: 635350 | B16: BIS Напівкруглий підтримуючий профіль 3м 50мм | C16: 3.84 | D16: 3.2 | E16: 0 | F16: м
A17: 635356 | B17: BIS Напівкруглий підтримуючий профіль 3м 56мм | C17: 19.26 | D17: 16.05 | E17: 0 | F17: м
A18: 635363 | B18: BIS Напівкруглий підтримуючий профіль 3м 63мм | C18: 4.368 | D18: 3.64 | E18: 0 | F18: м
A19: 635375 | B19: BIS Напівкруглий підтримуючий профіль 3м 75мм | C19: 4.788 | D19: 3.99 | E19: 0 | F19: м
A20: 670603 | B20: BIS Дюбель складний М8 х 100мм | C20: 3.072 | D20: 2.56 | E20: 25 | F20: шт
A21: 670604 | B21: BIS Дюбель складний М10 х 100мм | C21: 4.164 | D21: 3.47 | E21: 25 | F21: шт
A22: 802118 | B22: BIS Cobra Подвійні хомути з шуруп-гвинтом і дюбелем в комплекті 15-18мм | C22: 1.236 | D22: 1.03 | E22: 25 | F22: шт
A23: 802124 | B23: BIS Cobra Подвійні хомути з шуруп-гвинтом і дюбелем в комплекті 20-24мм | C23: 1.44 | D23: 1.2 | E23: 25 | F23: шт
A24: 802129 | B24: BIS Cobra Подвійні хомути з шуруп-гвинтом і дюбелем в комплекті 25-29мм | C24: 1.572 | D24: 1.31 | E24: 25 | F24: шт
A25: 802136 | B25: BIS Cobra Подвійні хомути з шуруп-гвинтом і дюбелем в комплекті 32-36мм | C25: 1.692 | D25: 1.41 | E25: 25 | F25: шт
A26: 835000 | B26: 0835000 BISMAT® Профіль фіксуюча пластина | C26: 0.648 | D26: 0.54 | E26: 50 | F26: шт
A27: 835503 | B27: BISMAT® Профіль | C27: 8.436 | D27: 7.03 | E27: 0 | F27: шт
A28: 854000 | B28: BIS starQuick Настінний подвійний тримач сірий 50мм | C28: 0.648 | D28: 0.54 | E28: 100 | F28: шт
A29: 854006 | B29: BIS starQuick Гайка М6 сіра | C29: 0.132 | D29: 0.11 | E29: 1000 | F29: шт
A30: 854010 | B30: BIS starQuick® Хомут сірий 10-12мм | C30: 0.516 | D30: 0.43 | E30: 100 | F30: шт
A31: 854012 | B31: BIS starQuick® Хомут сірий 12-14мм | C31: 0.252 | D31: 0.21 | E31: 100 | F31: шт
A32: 854015 | B32: BIS starQuick® Хомут сірий 14-16мм | C32: 0.252 | D32: 0.21 | E32: 100 | F32: шт
A33: 854018 | B33: BIS starQuick® Хомут сірий 16-20мм | C33: 0.348 | D33: 0.29 | E33: 100 | F33: шт
A34: 854022 | B34: BIS starQuick® Хомут сірий 20-23мм | C34: 0.384 | D34: 0.32 | E34: 50 | F34: шт
A35: 854028 | B35: BIS starQuick® Хомут сірий 24-28мм | C35: 0.54 | D35: 0.45 | E35: 50 | F35: шт
A36: 854031 | B36: BIS starQuick® Хомут сірий 28-32мм | C36: 0.588 | D36: 0.49 | E36: 50 | F36: шт
A37: 854035 | B37: BIS starQuick® Хомут сірий 32-35мм | C37: 0.648 | D37: 0.54 | E37: 50 | F37: шт
A38: 854038 | B38: BIS starQuick® Хомут сірий 35-40мм | C38: 0.792 | D38: 0.66 | E38: 25 | F38: шт
A39: 854042 | B39: BIS starQuick® Хомут сірий 40-44мм | C39: 1.056 | D39: 0.88 | E39: 25 | F39: шт
A40: 854050 | B40: BIS starQuick® Хомут сірий 44-50мм | C40: 1.2 | D40: 1 | E40: 25 | F40: шт
A41: 854054 | B41: BIS starQuick® Хомут сірий 48-55мм | C41: 1.416 | D41: 1.18 | E41: 15 | F41: шт
A42: 854063 | B42: BIS starQuick® Хомут сірий 59-65мм | C42: 1.668 | D42: 1.39 | E42: 15 | F42: шт
A43: 854308 | B43: BIS starQuick Гайка М8 сіра | C43: 0.156 | D43: 0.13 | E43: 1000 | F43: шт
A44: 854313 | B44: BIS starQuick Адаптер для профіля | C44: 0.36 | D44: 0.3 | E44: 200 | F44: шт
A45: 854325 | B45: BIS starQuick Профіль ПВХ 1м | C45: 3.744 | D45: 3.12 | E45: 25 | F45: м
A46: 854338 | B46: BIS starQuick® Адаптер до профілю Rail WM0-35 | C46: 1.788 | D46: 1.49 | E46: 50 | F46: шт
A47: 854348 | B47: BIS starQuick® Адаптер до профілю Strut | C47: 2.1 | D47: 1.75 | E47: 25 | F47: шт
A48: 854356 | B48: BIS starQuick Адаптер для шпильки M6 | C48: 0.492 | D48: 0.41 | E48: 100 | F48: шт
A49: 854358 | B49: BIS starQuick Адаптер для шпильки M8 | C49: 0.48 | D49: 0.4 | E49: 100 | F49: шт
A50: 880015 | B50: BISOFIX Хомут типу 88 PUR/PIR 15,8/30 ½''/M8 | Тип A | C50: 17.532 | D50: 14.61 | E50: 10 | F50: шт
A51: 880017 | B51: BISOFIX Хомут типу 88 PUR/PIR 17,2/30 ½''/M8 | Тип A | C51: 17.712 | D51: 14.76 | E51: 10 | F51: шт
A52: 880018 | B52: BISOFIX Хомут типу 88 PUR/PIR 18,0/30 ½''/M8 | Тип A | C52: 17.712 | D52: 14.76 | E52: 10 | F52: шт
A53: 880021 | B53: BISOFIX Хомут типу 88 PUR/PIR 21,3/30 ½''/M8 | Тип А | C53: 18.732 | D53: 15.61 | E53: 10 | F53: шт
A54: 880022 | B54: BISOFIX Хомут типу 88 PUR/PIR 22,0/30 ½''/M8 | Тип A | C54: 18.732 | D54: 15.61 | E54: 10 | F54: шт
A55: 880027 | B55: BISOFIX Хомут типу 88 PUR/PIR 26,9/30 ½''/M8 | Тип A | C55: 21.072 | D55: 17.56 | E55: 10 | F55: шт
A56: 880028 | B56: BISOFIX Хомут типу 88 PUR/PIR M10 | C56: 19.38 | D56: 16.15 | E56: 10 | F56: шт
A57: 880033 | B57: BISOFIX Хомут типу 88 PUR/PIR 33,7/30 ½''/M8 | Тип A | C57: 22.272 | D57: 18.56 | E57: 10 | F57: шт
A58: 880035 | B58: BISOFIX Хомут типу 88 PUR/PIR 35,0/30 ½''/M8 | Тип А | C58: 23.388 | D58: 19.49 | E58: 10 | F58: шт
A59: 880042 | B59: BISOFIX Хомут типу 88 PUR/PIR 42,4/30 ½''/M8 | Тип A | C59: 27.168 | D59: 22.64 | E59: 10 | F59: шт
A60: 880048 | B60: BISOFIX Хомут типу 88 PUR/PIR 48,3/30 ½''/M8 | Тип A | C60: 28.092 | D60: 23.41 | E60: 10 | F60: шт
A61: 880054 | B61: BISOFIX Хомут типу 88 PUR/PIR 54,0/30 ½''/M8 | Тип A | C61: 27.528 | D61: 22.94 | E61: 10 | F61: шт
A62: 880057 | B62: BISOFIX Хомут типу 88 PUR/PIR 57,0/30 ½''/M8 | Тип A | C62: 27.864 | D62: 23.22 | E62: 10 | F62: шт
A63: 880060 | B63: BISOFIX Хомут типу 88 PUR/PIR 60,3/30 ½''/M8 | Тип A | C63: 30.336 | D63: 25.28 | E63: 10 | F63: шт
A64: 880064 | B64: BISOFIX Хомут типу 88 PUR/PIR 64/30 ½''/M8 | Тип A | C64: по запросу | D64: по запросу | E64: 10 | F64: шт
A65: 880076 | B65: BISOFIX Хомут типу 88 PUR/PIR 76,1/30 M10 | Тип A | C65: 37.632 | D65: 31.36 | E65: 10 | F65: шт
A66: 880089 | B66: BISOFIX Хомут типу 88 PUR/PIR 88,9/30 M10 | Тип A | C66: 43.344 | D66: 36.12 | E66: 10 | F66: шт
A67: 880108 | B67: BISOFIX Хомут типу 88 PUR/PIR 108,0/40 M10 | Тип A | C67: 53.556 | D67: 44.63 | E67: 10 | F67: шт
A68: 880114 | B68: BISOFIX Хомут типу 88 PUR/PIR 114,3/40 M10 | Тип A | C68: 53.556 | D68: 44.63 | E68: 5 | F68: шт
A69: 880133 | B69: BISOFIX Хомут типу 88 PUR/PIR 133,0/40 M10 | Тип A | C69: 57.264 | D69: 47.72 | E69: 5 | F69: шт
A70: 880139 | B70: BISOFIX Хомут типу 88 PUR/PIR 139,7/40 M10 | Тип A | C70: 63.156 | D70: 52.63 | E70: 5 | F70: шт
A71: 880159 | B71: BISOFIX Хомут типу 88 PUR/PIR 159,0/40 M12 | Тип A | C71: 66.984 | D71: 55.82 | E71: 5 | F71: шт
A72: 880168 | B72: BISOFIX Хомут типу 88 PUR/PIR 168,3/40 M12 | Тип A | C72: 82.464 | D72: 68.72 | E72: 5 | F72: шт
A73: 880219 | B73: BISOFIX Хомут типу 88 PUR/PIR 219,1/60 M16 | Тип A | C73: 118.068 | D73: 98.39 | E73: 5 | F73: шт
A74: 880273 | B74: BISOFIX Хомут типу 88 PUR/PIR 273,0/60 M16 | Тип В | C74: 223.572 | D74: 186.31 | E74: 3 | F74: шт
A75: 880324 | B75: BISOFIX Хомут типу 88 PUR/PIR 323,9/60 M20 | Тип В | C75: 262.284 | D75: 218.57 | E75: 3 | F75: шт
A76: 880356 | B76: BISOFIX Хомут типу 88 PUR/PIR 355,6/60 M20 | Тип В | C76: по запросу | D76: по запросу | E76: 0 | F76: шт
A77: 880368 | B77: BISOFIX Хомут типу 88 PUR/PIR 368,0/60 М20 | Тип В | C77: =D77*1.2 -> 339.996 | D77: 283.33 | E77: 0 | F77: шт
A78: 880406 | B78: BISOFIX Хомут типу 88 PUR/PIR 406,4/60 M24 | Тип В | C78: 388.128 | D78: 323.44 | E78: 0 | F78: шт
A79: 880425 | B79: BISOFIX Хомут типу 88 PUR/PIR 425,0/60 M24 | Тип В | C79: по запросу | D79: по запросу | E79: 0 | F79: шт
A80: 880457 | B80: BISOFIX Хомут типу 88 PUR/PIR 457,2/60 M24 | Тип В | C80: по запросу | D80: по запросу | E80: 0 | F80: шт
A81: 880507 | B81: BISOFIX Хомут типу 88 PUR/PIR 507,0/60 | Тип В | C81: по запросу | D81: по запросу | E81: 0 | F81: шт
A82: 880508 | B82: BISOFIX Хомут типу 88 PUR/PIR 508,0/60 | Тип В | C82: 478.2 | D82: 398.5 | E82: 0 | F82: шт
A83: 880530 | B83: BISOFIX Хомут типу 88 PUR/PIR 530мм/60 | Тип В | C83: по запросу | D83: по запросу | E83: 0 | F83: шт
A84: 880609 | B84: BISOFIX Хомут типу 88 PUR/PIR 609,0/60 | Тип В | C84: 561.672 | D84: 468.06 | E84: 0 | F84: шт
A85: 880630 | B85: BISOFIX Хомут типу 88 PUR/PIR 630мм/60 | Тип В | C85: по запросу | D85: по запросу | E85: 0 | F85: шт
A86: 880711 | B86: BISOFIX Хомут типу 88 PUR/PIR 711мм/60 | Тип В | C86: по запросу | D86: по запросу | E86: 0 | F86: шт
A87: 881076 | B87: BISOFIX CF Пункт Стаб. 76,1мм | C87: 139.164 | D87: 115.97 | E87: 0 | F87: шт
A88: 881088 | B88: BISOFIX CF Пункт Стаб. 88,9мм | C88: 149.256 | D88: 124.38 | E88: 0 | F88: шт
A89: 881114 | B89: BISOFIX CF Пункт Стаб. 114,3мм | C89: 214.452 | D89: 178.71 | E89: 0 | F89: шт
A90: 881133 | B90: BISOFIX CF Пункт Стаб. 133мм | C90: 247.2 | D90: 206 | E90: 0 | F90: шт
A91: 881139 | B91: BISOFIX CF Пункт Стаб. 139,7мм | C91: 263.352 | D91: 219.46 | E91: 0 | F91: шт
A92: 881159 | B92: BISOFIX CF Пункт Стаб. 159мм | C92: 315.456 | D92: 262.88 | E92: 0 | F92: шт
A93: 881168 | B93: BISOFIX CF Пункт Стаб. 168,3мм | C93: 360.408 | D93: 300.34 | E93: 0 | F93: шт
A94: 881219 | B94: BISOFIX CF Пункт Стаб. 219,1мм | C94: 694.632 | D94: 578.86 | E94: 0 | F94: шт
A95: 881273 | B95: BISOFIX CF Пункт Стаб. 273мм | C95: 880.032 | D95: 733.36 | E95: 0 | F95: шт
A96: 2210012 | B96: BISOFIX® E13 Блок термоізоляційний 12,0мм | C96: 1.656 | D96: 1.38 | E96: 18 | F96: шт
A97: 2210015 | B97: BISOFIX® E13 Блок термоізоляційний 15-16мм | C97: 1.704 | D97: 1.42 | E97: 18 | F97: шт
A98: 2210017 | B98: BISOFIX® E13 Блок термоізоляційний 17,2-18,0мм | C98: 1.908 | D98: 1.59 | E98: 18 | F98: шт
A99: 2210021 | B99: BISOFIX® E13 Блок термоізоляційний 21,3-22мм | C99: 1.956 | D99: 1.63 | E99: 18 | F99: шт
A100: 2210027 | B100: BISOFIX® E13 Блок термоізоляційний 26,9-28мм | C100: 2.304 | D100: 1.92 | E100: 18 | F100: шт
A101: 2210035 | B101: BISOFIX® E13 Блок термоізоляційний 35,0мм | C101: 2.448 | D101: 2.04 | E101: 18 | F101: шт
A102: 2210042 | B102: BISOFIX® E13 Блок термоізоляційний 42,4мм | C102: 2.448 | D102: 2.04 | E102: 12 | F102: шт
A103: 2210048 | B103: BISOFIX® E13 Блок термоізоляційний 48,3мм | C103: 2.808 | D103: 2.34 | E103: 12 | F103: шт
A104: 2210054 | B104: BISOFIX® E13 Блок термоізоляційний 54,0мм | C104: 2.952 | D104: 2.46 | E104: 12 | F104: шт
A105: 2210060 | B105: BISOFIX® E13 Блок термоізоляційний 60,3мм | C105: 3.204 | D105: 2.67 | E105: 12 | F105: шт
A106: 2210064 | B106: BISOFIX® E13 Блок термоізоляційний 64,0мм | C106: 3.228 | D106: 2.69 | E106: 18 | F106: шт
A107: 2210070 | B107: BISOFIX® E13 Блок термоізоляційний 70мм | C107: 3.66 | D107: 3.05 | E107: 18 | F107: шт
A108: 2210076 | B108: BISOFIX® E13 Блок термоізоляційний 76,1мм | C108: 3.312 | D108: 2.76 | E108: 18 | F108: шт
A109: 2210089 | B109: BISOFIX® E13 Блок термоізоляційний 88,9мм | C109: 3.612 | D109: 3.01 | E109: 18 | F109: шт
A110: 2210102 | B110: BISOFIX® E13 Блок термоізоляційний 101,6мм | C110: 4.2 | D110: 3.5 | E110: 30 | F110: шт
A111: 2210108 | B111: BISOFIX® E13 Блок термоізоляційний 108,0мм | C111: 4.428 | D111: 3.69 | E111: 30 | F111: шт
A112: 2210114 | B112: BISOFIX® E13 Блок термоізоляційний 114,3мм | C112: 5.052 | D112: 4.21 | E112: 30 | F112: шт
A113: 2210219 | B113: BISOFIX® E13 Блок термоізоляційний 219,1мм | C113: 16.488 | D113: 13.74 | E113: 10 | F113: шт
A114: 2211012 | B114: BISOFIX® E19 Блок термоізоляційний 12мм | C114: 1.968 | D114: 1.64 | E114: 18 | F114: шт
A115: 2211015 | B115: BISOFIX® E19 Блок термоізоляційний 15мм | C115: 2.28 | D115: 1.9 | E115: 18 | F115: шт
A116: 2211017 | B116: BISOFIX® E19 Блок термоізоляційний 17,2-18 мм | C116: 2.364 | D116: 1.97 | E116: 18 | F116: шт
A117: 2211021 | B117: BISOFIX® E19 Блок термоізоляційний 21,3-22мм | C117: 2.628 | D117: 2.19 | E117: 18 | F117: шт
A118: 2211027 | B118: BISOFIX® E19 Блок термоізоляційний 26,9-28мм | C118: 2.664 | D118: 2.22 | E118: 12 | F118: шт
A119: 2211035 | B119: BISOFIX® E19 Блок термоізоляційний 35,0мм | C119: 2.736 | D119: 2.28 | E119: 12 | F119: шт
A120: 2211042 | B120: BISOFIX® E19 Блок термоізоляційний 42,4мм | C120: 2.94 | D120: 2.45 | E120: 12 | F120: шт
A121: 2211048 | B121: BISOFIX® E19 Блок термоізоляційний 48,3мм | C121: 3.252 | D121: 2.71 | E121: 18 | F121: шт
A122: 2211054 | B122: BISOFIX® E19 Блок термоізоляційний 54,0мм | C122: 3.576 | D122: 2.98 | E122: 18 | F122: шт
A123: 2211060 | B123: BISOFIX® E19 Блок термоізоляційний 60,3мм | C123: 3.732 | D123: 3.11 | E123: 18 | F123: шт
A124: 2211064 | B124: BISOFIX® E19 Блок термоізоляційний 64,0мм | C124: 3.864 | D124: 3.22 | E124: 18 | F124: шт
A125: 2211070 | B125: BISOFIX® E19 Блок термоізоляційний 70,0мм | C125: 3.96 | D125: 3.3 | E125: 18 | F125: шт
A126: 2211076 | B126: BISOFIX® E19 Блок термоізоляційний 76,1мм | C126: 4.08 | D126: 3.4 | E126: 18 | F126: шт
A127: 2211089 | B127: BISOFIX® E19 Блок термоізоляційний 88,9мм | C127: 4.428 | D127: 3.69 | E127: 9 | F127: шт
A128: 2211102 | B128: BISOFIX® E19 Блок термоізоляційний 101,6мм | C128: 4.92 | D128: 4.1 | E128: 30 | F128: шт
A129: 2211108 | B129: BISOFIX® E19 Блок термоізоляційний 108мм | C129: 5.556 | D129: 4.63 | E129: 30 | F129: шт
A130: 2211114 | B130: BISOFIX® E19 Блок термоізоляційний 114,3мм | C130: 5.856 | D130: 4.88 | E130: 30 | F130: шт
A131: 2211133 | B131: BISOFIX® E19 Блок термоізоляційний 133,0мм | C131: 6.864 | D131: 5.72 | E131: 12 | F131: шт
A132: 2211140 | B132: BISOFIX® E19 Блок термоізоляційний 139,7мм | C132: 7.152 | D132: 5.96 | E132: 12 | F132: шт
A133: 2211159 | B133: BISOFIX® E19 Блок термоізоляційний 159,0мм | C133: 14.004 | D133: 11.67 | E133: 12 | F133: шт
A134: 2211168 | B134: BISOFIX® E19 Блок термоізоляційний 168,3мм | C134: 15 | D134: 12.5 | E134: 12 | F134: шт
A135: 2211219 | B135: BISOFIX® E19 Блок термоізоляційний 219,1мм | C135: 16.068 | D135: 13.39 | E135: 10 | F135: шт
A136: 3008014 | B136: BIS Bifix® G2 Хомут без ізоляції 10-14мм М8/10 | C136: 2.16 | D136: 1.8 | E136: 50 | F136: шт
A137: 3008019 | B137: BIS Bifix® G2 Хомут без ізоляції 15-19мм М8/10 | C137: 1.548 | D137: 1.29 | E137: 50 | F137: шт
A138: 3008023 | B138: BIS Bifix® G2 Хомут без ізоляції 20-23мм М8/10 | C138: 1.548 | D138: 1.29 | E138: 50 | F138: шт
A139: 3008028 | B139: BIS Bifix® G2 Хомут без ізоляції 25-28мм М8/10 | C139: 1.548 | D139: 1.29 | E139: 50 | F139: шт
A140: 3008035 | B140: BIS Bifix® G2 Хомут без ізоляції 31-35мм М8/10 | C140: =D140*1.2 -> 1.548 | D140: 1.29 | E140: 50 | F140: шт
A141: 3008039 | B141: BIS Bifix® G2 Хомут без ізоляції 36-39мм М8/10 | C141: 1.548 | D141: 1.29 | E141: 50 | F141: шт
A142: 3008045 | B142: BIS Bifix® G2 Хомут без ізоляції 40-45мм М8/10 | C142: 1.548 | D142: 1.29 | E142: 50 | F142: шт
A143: 3008052 | B143: BIS Bifix® G2 Хомут без ізоляції 48-52мм М8/10 | C143: 1.548 | D143: 1.29 | E143: 50 | F143: шт
A144: 3008058 | B144: BIS Bifix® G2 Хомут без ізоляції 54-58мм М8/10 | C144: 1.284 | D144: 1.07 | E144: 50 | F144: шт
A145: 3008064 | B145: BIS Bifix® G2 Хомут без ізоляції 60-64мм М8/10 | C145: 1.548 | D145: 1.29 | E145: 50 | F145: шт
A146: 3008070 | B146: BIS Bifix® G2 Хомут без ізоляції 66-70мм M8/10 | C146: 1.548 | D146: 1.29 | E146: 50 | F146: шт
A147: 3008079 | B147: BIS Bifix® G2 Хомут без ізоляції 75-79мм M8/10 | C147: 1.548 | D147: 1.29 | E147: 50 | F147: шт
A148: 3008083 | B148: BIS Bifix® G2 Хомут без ізоляції 80-83мм M8/10 | C148: 1.548 | D148: 1.29 | E148: 50 | F148: шт
A149: 3008091 | B149: BIS Bifix® G2 Хомут без ізоляції 88-91мм M8/10 | C149: 2.208 | D149: 1.84 | E149: 50 | F149: шт
A150: 3008105 | B150: BIS Bifix® G2 Хомут без ізоляції 100-105мм M8/10 | C150: 2.424 | D150: 2.02 | E150: 50 | F150: шт
A151: 3008115 | B151: BIS Bifix® G2 Хомут без ізоляції 108-115мм M8/10 | C151: 2.532 | D151: 2.11 | E151: 25 | F151: шт
A152: 3008130 | B152: BIS Bifix® G2 Хомут без ізоляції 125-130мм M8/10 | C152: 3.192 | D152: 2.66 | E152: 25 | F152: шт
A153: 3008140 | B153: BIS Bifix® G2 Хомут без ізоляції 133-140мм M8/10 | C153: 3.42 | D153: 2.85 | E153: 25 | F153: шт
A154: 3008160 | B154: BIS Bifix® G2 Хомут без ізоляції 152-160мм M8/10 | C154: 3.96 | D154: 3.3 | E154: 25 | F154: шт
A155: 3008169 | B155: BIS Bifix® G2 Хомут без ізоляції 165-169мм M8/10 | C155: 6.6 | D155: 5.5 | E155: 25 | F155: шт
A156: 3008180 | B156: BIS Bifix® G2 Хомут без ізоляції 176-180мм M8/10 | C156: 7.152 | D156: 5.96 | E156: 15 | F156: шт
A157: 3008200 | B157: BIS Bifix® G2 Хомут без ізоляції 192-200мм M8/10 | C157: 7.26 | D157: 6.05 | E157: 15 | F157: шт
A158: 3008210 | B158: BIS Bifix® G2 Хомут без ізоляції 205-210мм M8/10 | C158: 7.38 | D158: 6.15 | E158: 15 | F158: шт
A159: 3008225 | B159: BIS Bifix® G2 Хомут без ізоляції 219-225мм M8/10 | C159: 7.488 | D159: 6.24 | E159: 15 | F159: шт
A160: 3188016 | B160: BISMAT 5000 Хомут для пластик.труб (зелен.ізол.) 16мм M8/10 | C160: 1.872 | D160: 1.56 | E160: 50 | F160: шт
A161: 3188020 | B161: BISMAT 5000 Хомут для пластик.труб (зелен.ізол.) 20мм M8/10 | C161: 1.932 | D161: 1.61 | E161: 50 | F161: шт
A162: 3188025 | B162: BISMAT 5000 Хомут для пластик.труб (зелен.ізол.) 25мм M8/10 | C162: 1.98 | D162: 1.65 | E162: 50 | F162: шт
A163: 3188032 | B163: BISMAT 5000 Хомут для пластик.труб (зелен.ізол.) 32мм M8/10 | C163: 1.896 | D163: 1.58 | E163: 50 | F163: шт
A164: 3188040 | B164: BISMAT 5000 Хомут для пластик.труб (зелен.ізол.) 40мм M8/10 | C164: 2.208 | D164: 1.84 | E164: 50 | F164: шт
A165: 3188050 | B165: BISMAT 5000 Хомут для пластик.труб (зелен.ізол.) 50мм M8/10 | C165: 2.544 | D165: 2.12 | E165: 50 | F165: шт
A166: 3188056 | B166: BIS Bifix 5000 Хомут для пластик.труб (зелен.ізол.) 56мм M8/10 | C166: 3.516 | D166: 2.93 | E166: 50 | F166: шт
A167: 3188063 | B167: BIS Bifix 5000 Хомут для пластик.труб (зелен.ізол.) 63мм M8/10 | C167: 4.212 | D167: 3.51 | E167: 50 | F167: шт
A168: 3188075 | B168: BIS Bifix 5000 Хомут для пластик.труб (зелен.ізол.) 75мм M8/10 | C168: 4.536 | D168: 3.78 | E168: 50 | F168: шт
A169: 3188090 | B169: BIS Bifix 5000 Хомут для пластик.труб (зелен.ізол.) 90мм M8/10 | C169: 5.064 | D169: 4.22 | E169: 25 | F169: шт
A170: 3188110 | B170: BIS Bifix 5000 Хомут для пластик.труб (зелен.ізол.) 110мм M8/10 | C170: 4.92 | D170: 4.1 | E170: 25 | F170: шт
A171: 3188125 | B171: BIS Bifix 5000 Хомут для пластик.труб (зелен.ізол.) 125мм M8/10 | C171: 6.948 | D171: 5.79 | E171: 25 | F171: шт
A172: 3188135 | B172: BIS Bifix 5000 Хомут для пластик.труб (зелен.ізол.) 135мм M8/10 | C172: 6.96 | D172: 5.8 | E172: 25 | F172: шт
A173: 3188160 | B173: BIS Bifix 5000 Хомут для пластик.труб (зелен.ізол.) 160мм M8/10 | C173: 9.024 | D173: 7.52 | E173: 10 | F173: шт
A174: 3363014 | B174: BIS KSB1 Хомут з гумов. ізоляц. 13-14мм М8 | C174: 0.66 | D174: 0.55 | E174: 100 | F174: шт
A175: 3363018 | B175: BIS KSB1 Хомут з гумов. ізоляц. 15-18мм М8 | C175: 0.66 | D175: 0.55 | E175: 100 | F175: шт
A176: 3363023 | B176: BIS KSB1 Хомут з гумов. ізоляц. 20-23мм М8 | C176: 0.72 | D176: 0.6 | E176: 100 | F176: шт
A177: 3363028 | B177: BIS KSB1 Хомут з гумов. ізоляц. 25-28мм М8 | C177: 0.84 | D177: 0.7 | E177: 100 | F177: шт
A178: 3363035 | B178: BIS KSB1 Хомут з гумов. ізоляц. 32-35мм М8 | C178: 0.9 | D178: 0.75 | E178: 100 | F178: шт
A179: 3363043 | B179: BIS KSB1 Хомут з гумов. ізоляц. 40-43мм М8 | C179: 1.104 | D179: 0.92 | E179: 100 | F179: шт
A180: 3363051 | B180: BIS KSB1 Хомут з гумов. ізоляц. 48-51мм М8 | C180: 1.188 | D180: 0.99 | E180: 50 | F180: шт
A181: 3363054 | B181: BIS KSB1 Хомут з гумов. ізоляц. 53-56мм М8 | C181: 1.2 | D181: 1 | E181: 50 | F181: шт
A182: 3363062 | B182: BIS KSB1 Хомут з гумов. ізоляц. 59-62мм М8 | C182: 1.284 | D182: 1.07 | E182: 50 | F182: шт
A183: 3363070 | B183: BISMAT® 1000 Комплект для шумопогл. опорн. кріплення (SL/SX) 70мм | C183: 17.568 | D183: 14.64 | E183: 5 | F183: шт
A184: 3363075 | B184: BISMAT® 1000 Комплект для шумопогл. опорн. кріплення (SL/SX) 78мм | C184: 23.556 | D184: 19.63 | E184: 5 | F184: шт
A185: 3363080 | B185: BISMAT® 1000 Комплект для шумопогл. опорн. кріплення (SL/SX) 80мм | C185: 20.172 | D185: 16.81 | E185: 5 | F185: шт
A186: 3363100 | B186: BISMAT® 1000 Комплект для шумопогл. опорн. кріплення (SL/SX) 110мм | C186: 17.196 | D186: 14.33 | E186: 5 | F186: шт
A187: 3363125 | B187: BISMAT® 1000 Комплект для шумопогл. опорн. кріплення (SL/SX) 125мм | C187: 22.716 | D187: 18.93 | E187: 5 | F187: шт
A188: 3363137 | B188: BISMAT® 1000 Комплект для шумопогл. опорн. кріплення (SL/SX) 135мм | C188: 33.36 | D188: 27.8 | E188: 5 | F188: шт
A189: 3363150 | B189: BISMAT® 1000 Комплект для шумопогл. опорн. кріплення (SL/SX) 160мм | C189: 30.456 | D189: 25.38 | E189: 5 | F189: шт
A190: 3363200 | B190: BISMAT® 1000 Комплект для шумопогл. опорн. кріплення (SL/SX) 200мм | C190: 30.456 | D190: 25.38 | E190: 5 | F190: шт
A191: 3373018 | B191: BISMAT® Flash Хомут з гумов. ізоляц. 3/8'' DN10 15-18мм M8 | C191: 0.912 | D191: 0.76 | E191: 50 | F191: шт
A192: 3373023 | B192: BISMAT® Flash Хомут з гумов. ізоляц.1/2'' DN15 20-23мм М8 | C192: 1.044 | D192: 0.87 | E192: 50 | F192: шт
A193: 3373028 | B193: BISMAT® Flash Хомут з гумов. ізоляц. 3/4'' DN20 25-28мм M8 | C193: 1.08 | D193: 0.9 | E193: 50 | F193: шт
A194: 3373035 | B194: BISMAT® Flash Хомут з гумов. ізоляц. 32-35мм М8 | C194: 1.128 | D194: 0.94 | E194: 50 | F194: шт
A195: 3373043 | B195: BISMAT® Flash Хомут з гумов. ізоляц. DN32 40-43мм M8 | C195: 1.308 | D195: 1.09 | E195: 50 | F195: шт
A196: 3373051 | B196: BISMAT® Flash Хомут з гумов. ізоляц. DN40 48-51мм M8 | C196: 1.404 | D196: 1.17 | E196: 50 | F196: шт
A197: 3373056 | B197: BISMAT® Flash Хомут з гумов. ізоляц. 53-56мм M8 | C197: 1.512 | D197: 1.26 | E197: 50 | F197: шт
A198: 3396014 | B198: KSB2 Хомут з гумов. ізоляц. 10-14 мм М8/10 | C198: 0.804 | D198: 0.67 | E198: 100 | F198: шт
A199: 3396019 | B199: KSB2 Хомут з гумов. ізоляц. 15-19 мм М8/110 | C199: 0.816 | D199: 0.68 | E199: 100 | F199: шт
A200: 3396023 | B200: KSB2 Хомут з гумов. ізоляц. 20-23 мм М8/10 | C200: 0.84 | D200: 0.7 | E200: 100 | F200: шт
A201: 3396028 | B201: KSB2 Хомут з гумов. ізоляц. 25-28 мм М8/10 | C201: 0.996 | D201: 0.83 | E201: 100 | F201: шт
A202: 3396035 | B202: KSB2 Хомут з гумов. ізоляц. 31-35 мм М8/10 | C202: 1.092 | D202: 0.91 | E202: 100 | F202: шт
A203: 3396039 | B203: KSB2 Хомут з гумов. ізоляц. 36-39 мм М8/10 | C203: 1.236 | D203: 1.03 | E203: 100 | F203: шт
A204: 3396045 | B204: KSB2 Хомут з гумов. ізоляц. 40-45 мм М8/10 | C204: =D204*1.2 -> 1.248 | D204: 1.04 | E204: 100 | F204: шт
A205: 3396064 | B205: KSB2 Хомут з гумов. ізоляц. 60-64 мм М8/10 | C205: 1.62 | D205: 1.35 | E205: 50 | F205: шт
... 852 more rows
